Workbook

Sheet ОП-5 (Инфинити)
M1: Процент на увеличение материала | N1: Коэффициент на усложнение
B2: Рассчетные данные:
B4: Фундамент | F4: Цокольный этаж (подвал)
B5: Периметр (Р) фундамента: | E5: мп | M5: =[1]Раб!$I$5 -> 1.05 | N5: =[1]Раб!$J$5 -> 1.2
B6: Дом: | C6: Ребра жест. | D6: 200х400 | E6: 101.83 | F6: Площадь (S) плиты основания:
B7: Дом: | C7: Лента | D7: 1800х400 | E7: 0 | F7: Толщина плиты основания (H):
B8: Гараж: | C8: Ребра жест. | D8: 200х400 | E8: 0 | F8: Периметр (P) стен наружних:
B9: Терраса: | C9: Лента | D9: 300х500 | F9: Периметр (P) стен несущих внутренних:
B10: Крыльцо: | C10: Лента | D10: 400х600 | E10: 0 | F10: Высота стен (H):
B11: Сваи, шт: | C11: Ж/Б | D11: d300 | E11: =CEILING(SUM(E6,E9)/1.8,1) -> 57 | F11: Площадь (S) стен наружних: | J11: =J8*J10 -> 0
B12: Гараж: | C12: Ж/Б плита | D12: h150 | E12: 0 | F12: Площадь (S) стен несущих внутренних: | J12: =J9*J10 -> 0
B13: Отмостка | E13: =57.5+2 -> 59.5 | F13: Площадь (S) перегородок:
F14: Количество оконных/дверных проемов:
F15: Цоколь - объём (V) котлована (м3): | J15: =J6*(J7+J10+0.2-0.4) -> 0
F16: Цоколь - (V) выемка грунта (м3): | J16: =J15*1.1 -> 0
F17: Цоколь - (V) обратная засыпка грунта (м3): | J17: =J16-J15 -> 0
B18: 1 этаж: | F18: 2 этаж:
B19: Перекрытия
B20: Площадь (S) Фунд.ПЛИТЫ/ПЕРЕКРЫТИЯ Фундамента: | E20: =122.7+31.2+1.4+2.5+10.9 -> 168.7 | F20: Площадь (S) ПОЛА 2 этажа (на стены 1 эт., межэтажное): | J20: =139.9+5 -> 144.9
B21: ОБЩАЯ площадь (S) пола ДОМА: | E21: =E20+J20+J21 -> 313.6 | F21: Площадь (S) ПОЛА 2 этажа (на стены гаража):
B22: Стены
B23: Общая площадь 1 этажа, м2 | E23: 116.5 | F23: Общая площадь 2 этажа, м2 | J23: 115.7
B24: Количество помещений 1 этажа, м2 | E24: 9 | F24: Количество помещений 2 этажа, м2 | J24: 9
B25: Количество мокрых зон 1 этажа, шт | E25: 2 | F25: Количество мокрых зон 2 этажа (кол-во стояков), шт | J25: 2
B26: Количество сантехприборов 1 этажа, шт | E26: 5 | F26: Количество сантехприборов 2 этажа, шт | J26: 10
B27: Система "Теплый пол", контур в шт, S в м2 | D27: 6 | E27: =E23 -> 116.5
B28: Периметр (Р) стен: | C28: Материал: | D28: Размер: | E28: мп | F28: Периметр (Р) стен: | H28: Материал: | I28: Размер: | J28: мп
B29: НАРУЖНЫХ стен ДОМА 1 этажа: | C29: YTONG | D29: 300 | E29: 52.84 | F29: НАРУЖНЫХ стен ДОМА 2 этажа: | H29: YTONG | I29: 300 | J29: 50.4
B30: ВНУТРЕННИХ стен ДОМА 1 этажа: | C30: YTONG | D30: 250 | E30: 41.34 | F30: ВНУТРЕННИХ стен ДОМА 2 этажа: | H30: YTONG | I30: 250 | J30: 30.75
B31: Длина (L) несущей БАЛКИ: | C31: Ж/Б | D31: 200х200 | F31: Длина (L) несущей БАЛКИ: | H31: Ж/Б | I31: 200х200
B32: Длина (L) несущей БАЛКИ: | C32: Ж/Б | D32: 200х300 | F32: Длина (L) несущей БАЛКИ: | H32: Ж/Б | I32: 200х300
B33: Длина (L) несущей БАЛКИ: | C33: Ж/Б | D33: 300х300 | F33: Длина (L) несущей БАЛКИ: | H33: Ж/Б | I33: 300х300
B34: Длина (L) несущей БАЛКИ: | C34: Ж/Б | D34: 300х400 | E34: 4.3 | F34: Длина (L) несущей БАЛКИ: | H34: Ж/Б | I34: 300х400
B35: Длина (L) несущей БАЛКИ: | C35: Ж/Б | D35: 300х500 | F35: Длина (L) несущей БАЛКИ: | H35: Ж/Б | I35: 300х500
B36: Длина (L) несущей БАЛКИ: | C36: Ж/Б | D36: 400х400 | F36: Длина (L) несущей БАЛКИ: | H36: Ж/Б | I36: 400х400
B37: Длина (L) несущей БАЛКИ: | C37: Ж/Б | D37: 400х500 | F37: Длина (L) несущей БАЛКИ: | H37: Ж/Б | I37: 300х500
B38: Длина (L) несущей БАЛКИ: | C38: Двутавр | D38: 200 | F38: Длина (L) несущей БАЛКИ: | H38: Двутавр | I38: 270
B39: Длина (L) несущей БАЛКИ: | C39: Двутавр | D39: 300 | F39: Длина (L) несущей БАЛКИ: | H39: Двутавр | I39: 330
B40: Длина (L) несущей БАЛКИ: | C40: Брус | D40: 150х150 | F40: Длина (L) несущей БАЛКИ: | H40: Брус | I40: 150х150
B41: Длина (L) несущей КОЛОННЫ: | C41: Ж/Б | D41: 300х300 | F41: Длина (L) несущей КОЛОННЫ: | H41: Ж/Б | I41: 300х300
B42: Длина (L) несущей КОЛОННЫ: | C42: Ж/Б | D42: 400х400 | E42: =6+6.7 -> 12.7 | F42: Длина (L) несущей КОЛОННЫ: | H42: Ж/Б | I42: 400х400
B43: Длина (L) несущей КОЛОННЫ: | C43: Ж/Б | D43: 200х200 | F43: Длина (L) несущей КОЛОННЫ: | H43: Ж/Б | I43: 200х200
B44: Длина (L) несущей КОЛОННЫ: | C44: Кирпич | D44: 250х250 | F44: Длина (L) несущей КОЛОННЫ: | H44: Кирпич | I44: 250х250
B45: Длина (L) несущей КОЛОННЫ: | C45: Кирпич | D45: 380х380 | F45: Длина (L) несущей КОЛОННЫ: | H45: Кирпич | I45: 380х380
B46: Длина (L) несущей КОЛОННЫ: | C46: Брус | D46: 150х150 | F46: Длина (L) несущей КОЛОННЫ: | H46: Брус | I46: 150х150
B47: ПЕРЕГОРОДОК 1 этажа: | C47: ГСБ | D47: 100 | F47: ПЕРЕГОРОДОК 2 этажа: | H47: ГСБ | I47: 100
B48: Высота этажа (H) НЕСУЩИХ НАРУЖНИХ СТЕН с уч. перекрытия: | E48: 3.25 | F48: Высота этажа (H) НЕСУЩИХ НАРУЖНИХ СТЕН с уч. перекрытия: | J48: =2.75+2.5 -> 5.25
B49: Высота (H) НЕСУЩИХ ВНУТРЕННИХ СТЕН и перегородок: | E49: 3 | F49: Высота (H) НЕСУЩИХ ВНУТРЕННИХ СТЕН и перегородок: | J49: 2.75
B50: Стены
B51: Длина (L) диска жесткости фундамента (Сборное перекрытие): | E51: =E29 -> 52.84 | F51: Длина (L) пояса жесткости цоколя (Под перекрытие фундамента): | J51: =E29+E30 -> 94.18
B52: Длина (L) диска жесткости 1 этажа (Сборное перекрытие): | E52: =E29 -> 52.84 | F52: Длина (L) пояса жесткости 1 этажа (Под межэтажное перекрытие): | J52: =E29+E30 -> 94.18
B53: Длина (L) диска жесткости 2 этажа (Сборное перекрытие): | E53: =J29 -> 50.4 | F53: Длина (L) пояса жесткости 2 этажа (Под чердак и мауэрлат): | J53: =(J29+J30)*2 -> 162.3
B54: Площадь (S) стен: | E54: м2 | F54: Площадь (S) стен: | J54: м2
B55: Площадь (S) НЕСУЩИХ НАРУЖНЫХ стен ДОМА 1 этажа: | E55: =114.4+9.3 -> 123.7 | F55: Площадь (S) НЕСУЩИХ НАРУЖНЫХ стен ДОМА 2 этажа: | J55: =9+114.4+24.5+49.2 -> 197.1
B56: Площадь (S) НЕСУЩИХ ВНУТРЕННИХ стен ДОМА 1 этажа: | E56: 103.2 | F56: Площадь (S) НЕСУЩИХ ВНУТРЕННИХ стен ДОМА 2 этажа: | J56: 72.8
B57: Площадь (S) ПЕРЕГОРОДОК 1 этажа: | E57: 21.7 | F57: Площадь (S) ПЕРЕГОРОДОК 2 этажа: | J57: 46.5
B58: Площадь (S) ФАСАДА 1 этаж: | E58: =E55 -> 123.7 | F58: Площадь (S) ФАСАДА 2 этаж: | J58: =J55 -> 197.1
B59: ОБЩАЯ площадь (S) ФАСАДА: | E59: =E58+J58 -> 320.8
B60: Окна | E60: м2 | F60: Общее количество проемов 1 этажа, шт: | J60: 21
B61: Окна и балконные двери | E61: 70.2 | F61: Общее количество проемов 2 этажа, шт: | J61: 20
B62: Количество окон, шт | E62: 18 | F62: Чердак: кол-во балок 6000х50х150/200 мм | J62: 0
B63: Двери | E63: шт | F63: Чердак: кол-во доски 6000х25х150/200 мм | J63: 0
B64: Двери входные | E64: 3 | F64: Количество мансардных окон: | J64: 0
B65: Двери межкомнатные | E65: 15
B66: Крыша (30° уклон) | E66: 0.866 | F66: Крыша
B67: Площадь (S) кровли: | E67: м2 | F67: Дополнительная информация:
B68: Чердачное перекрытие: | F68: Высота:
B69: Плоская кровля 1 | E69: 150.8
B70: Плоская кровля 2 | E70: 13.5 | F70: Материал:
B71: Крыша дома (утепленная):
B72: Крыша над гаражом (утепленная/не утепленная): | F72: Материал:
B73: Крыша над террасой: | F73: Материал:
B74: Крыша над балконом: | F74: Материал:
B75: Крыша над крыльцом: | F75: Материал:
B76: Пристроенный гараж: | F76: Пристроенная котельная (бойлерная):
B77: Площадь (S) пола гаража (м2)/тип перекрытия: | F77: Площадь (S) пола пристройки (м2)/тип перекрытия:
B78: Площадь (S) перекрытия гаража (м2)/тип перекрытия: | F78: Площадь (S) перекрытия пристройки (м2)/тип перекрытия:
B79: Периметр (P) СТЕН: | F79: Периметр (P) СТЕН:
B80: Площадь (S) СТЕН: | F80: Площадь (S) СТЕН:
B81: Крыльцо (покрытие) | F81: Терраса (покрытие)
B82: Площадь (S) перекрытия крыльца (м2)/тип перекрытия: | E82: 3.9 | F82: Площадь (S) перекрытия террасы (м2)/тип перекрытия: | J82: 10.9
B83: Омновной материал: | F83: Омновной материал:
B84: Количество ступенек, шт: | F84: Количество ступенек, шт:
B85: Объем лестницы, м3: | F85: Объем лестницы, м3:
B86: Ограждение (дерево/ковка) (мп): | F86: Ограждение (дерево/ковка) (мп):
B87: Балкон | F87: Вентиляция
B88: Площадь (S) перекрытия балкона (м2)/тип перекрытия: | F88: Количество выходов на кровлю: | J88: 3
B89: Ограждение (дерево/ковка) (мп): | F89: Отделка выходов на кровлю (тип):
B90: Лестница | F90: Количество дымоходов на цокольном этаже:
B91: Количество межэтажных лестниц: | E91: 2 | F91: Количество дымоходов на 1 этаже: | J91: 3
B92: Омновной материал: | F92: Количество каналов на цокольном этаже:
B93: Объем лестницы, м3: | E93: =2.19*2 -> 4.38 | F93: Количество каналов на 1 этаже: | J93: 12
B94: Количество ступенек: | E94: =16*2 -> 32 | F94: Количество каналов на 2 этаже: | J94: 12
B95: Площадь монолитных площадок, м2: | E95: 4 | F95: Водосточная система:
B96: Дополнительно | F96: Труба (стояк) (шт): | J96: 8
B97: Площадь (S) подшивки карнизных свесов (мп) и скатов террасных навесов софитом: | E97: 0 | F97: Труба (стояк) (мп): | J97: =6.5*8 -> 52
B98: Площадь (S) пола под (ЦСП) (м2): | F98: Угол желоба (шт): | J98: =J96 -> 8
B99: Площадь (S) стен под (ЦСП) (м2): | F99: Колено стока (шт): | J99: =J98 -> 8
B100: Снегозадержатели (мп): | E100: 0 | F100: Воронка (шт) | J100: =J96 -> 8
B101: Разводка электрики (шт): | F101: Желоб (мп): | J101: 44.2
B102: Система отпления (м2): | F102: Крюки для желоба (шт): | J102: =J101 -> 44.2
A116: Заказчик:
A117: Адрес объекта:
A118: Удаленность от МКАД: км
A119: Проект:
A120: ="Расчетная площадь: "&(E20+J20+J21+E12+E82+E69+E70)&" м2" -> Расчетная площадь: 481,8 м2
C627: Менеджеры по работе с клиентами
C628: ='[1]КП ПХ'!$C$230 -> Дарья Чигирева | E628: ='[1]КП ПХ'!$E$230 -> E-mail: dchigireva@pophouse.ru
C629: ='[1]КП ПХ'!$C$231 -> Кустова Александра | E629: ='[1]КП ПХ'!$E$231 -> E-mail: akustova@pophouse.ru
C630: ='[1]КП ПХ'!$C$232 -> Фаянцева Наталья | E630: ='[1]КП ПХ'!$E$232 -> E-mail: nfayantseva@pophouse.ru
